fUST/lending_fUST_20260612
["ID","MTS","AMOUNT","RATE_DAILY","PERIOD"]
[424842822,1781197839000,-927.85,0.00035616,18]
[424842826,1781197839000,-1757.98,0.00035616,18]
[424842833,1781197839000,-865.74,0.00035616,18]
[424842824,1781197839000,-500.0,0.00035616,18]
[424842818,1781197839000,-500.0,0.00035616,18]
[424842842,1781197839000,-500.0,0.0003589,18]
[424842852,1781197839000,-500.0,0.0003589,18]
[424842861,1781197839000,-500.0,0.0003589,18]
[424842836,1781197839000,-631.55,0.00035616,18]
[424842846,1781197839000,-271.13851299,0.0003589,18]
[424842858,1781197839000,-500.0,0.0003589,18]
[424842857,1781197839000,-500.0,0.0003589,18]
[424842848,1781197839000,-500.0,0.0003589,18]
[424842850,1781197839000,-166.68452241,0.0003589,18]
[424842834,1781197839000,-1058.09,0.00035616,18]
[424842840,1781197839000,-500.0,0.0003589,18]
[424842839,1781197839000,-500.0,0.0003589,18]
[424842844,1781197839000,-500.0,0.0003589,18]
[424843035,1781197840000,-500.0,0.0003589,18]
[424843039,1781197840000,-927.85,0.0003589,18]
[424843027,1781197840000,-545.68,0.0003589,18]
[424843025,1781197840000,-500.0,0.0003589,18]
[424843023,1781197840000,-500.0,0.0003589,18]
[424843011,1781197840000,-822.38,0.0003589,18]
[424843021,1781197840000,-500.0,0.0003589,18]
[424843017,1781197840000,-618.42,0.0003589,18]
[424843013,1781197840000,-500.0,0.0003589,18]
[424843009,1781197840000,-500.0,0.0003589,18]
[424843007,1781197840000,-713.18,0.0003589,11]
[424843029,1781197840000,-564.02,0.0003589,18]
[424843019,1781197840000,-500.0,0.0003589,18]
[424843037,1781197840000,-16418.99,0.0003589,18]
[424843062,1781197840000,-500.0,0.00036164,18]
[424843031,1781197840000,-399.92274297,0.0003589,18]
[424843042,1781197840000,-1757.98,0.0003589,18]
[424843040,1781197840000,-500.0,0.0003589,18]
[424843056,1781197840000,-500.0,0.00036164,18]
[424843058,1781197840000,-500.0,0.00036164,18]
[424843052,1781197840000,-152.0,0.00036016,2]
[424843054,1781197840000,-500.0,0.00036164,18]
[424843048,1781197840000,-865.74,0.0003589,18]
[424843064,1781197840000,-500.0,0.00036164,18]
[424843044,1781197840000,-1023.87,0.0003589,18]
[424843065,1781197840000,-500.0,0.00036164,18]
[424843005,1781197840000,-1220.57,0.0003589,18]
[424843059,1781197840000,-500.0,0.00036164,18]
[424843033,1781197840000,-1264.17,0.0003589,18]
[424843015,1781197840000,-500.0,0.0003589,18]
[424842944,1781197840000,-500.0,0.0003589,18]
[424842993,1781197840000,-500.0,0.0003589,18]
[424843046,1781197840000,-500.0,0.0003589,18]
[424842939,1781197840000,-829.28,0.0003589,18]
[424842941,1781197840000,-500.0,0.0003589,18]
[424842946,1781197840000,-500.0,0.0003589,18]
[424842951,1781197840000,-500.0,0.0003589,18]
[424842953,1781197840000,-1600.57,0.0003589,18]
[424842948,1781197840000,-500.0,0.0003589,18]
[424842956,1781197840000,-500.0,0.0003589,18]
[424842959,1781197840000,-853.13,0.0003589,18]
[424842961,1781197840000,-500.0,0.0003589,18]
[424842963,1781197840000,-343.79336589,0.0003589,18]
[424842965,1781197840000,-280.29177302,0.0003589,18]
[424842972,1781197840000,-500.0,0.0003589,18]
[424842980,1781197840000,-1379.74,0.0003589,18]
[424842967,1781197840000,-631.04,0.0003589,18]
[424842987,1781197840000,-500.0,0.0003589,18]
[424842974,1781197840000,-500.0,0.0003589,18]
[424842982,1781197840000,-1277.21,0.0003589,2]
[424842976,1781197840000,-500.0,0.0003589,6]
[424842969,1781197840000,-500.0,0.0003589,18]
[424842985,1781197840000,-500.0,0.0003589,18]
[424842991,1781197840000,-2320.67,0.0003589,18]
[424842989,1781197840000,-1789.85,0.0003589,18]
[424842978,1781197840000,-500.0,0.0003589,18]
[424842984,1781197840000,-500.0,0.0003589,18]
[424842995,1781197840000,-993.31,0.0003589,18]
[424842997,1781197840000,-500.0,0.0003589,18]
[424843003,1781197840000,-1269.75,0.0003589,18]
[424843001,1781197840000,-500.0,0.0003589,18]
[424842999,1781197840000,-500.0,0.0003589,18]
[424843050,1781197840000,-1058.09,0.0003589,18]
[424843139,1781197840000,-1269.75,0.00036164,18]
[424843076,1781197840000,-597.56,0.00036164,18]
[424843100,1781197840000,-503.4128567,0.00036164,18]
[424843095,1781197840000,-1009.93,0.00036164,18]
[424843102,1781197840000,-500.0,0.00036164,18]
[424843099,1781197840000,-500.0,0.00036164,18]
[424843117,1781197840000,-500.0,0.00036164,6]
[424843106,1781197840000,-500.0,0.00036164,18]
[424843119,1781197840000,-500.0,0.00036164,18]
[424843115,1781197840000,-278.79,0.00036164,18]
[424843114,1781197840000,-453.5,0.00036164,18]
[424843111,1781197840000,-631.04,0.00036164,18]
[424843109,1781197840000,-500.0,0.00036164,18]
[424843123,1781197840000,-500.0,0.00036164,18]
[424843066,1781197840000,-500.0,0.00036164,18]
[424843122,1781197840000,-1277.21,0.00036164,2]
[424843125,1781197840000,-500.0,0.00036164,18]
[424843120,1781197840000,-1379.74,0.00036164,18]
[424843112,1781197840000,-500.0,0.00036164,18]
[424843126,1781197840000,-500.0,0.00036164,18]
[424843129,1781197840000,-2320.67,0.00036164,18]
[424843128,1781197840000,-1789.85,0.00036164,18]
[424843136,1781197840000,-646.4,0.00036164,18]
[424843137,1781197840000,-500.0,0.00036164,18]
[424843141,1781197840000,-1220.57,0.00036164,18]
[424843133,1781197840000,-993.31,0.00036164,18]
[424843143,1781197840000,-713.18,0.00036164,11]
[424843145,1781197840000,-165.31738939,0.00036164,18]
[424843131,1781197840000,-500.0,0.00036164,18]
[424843134,1781197840000,-500.0,0.00036164,18]
[424843147,1781197840000,-822.38,0.00036164,18]
[424843092,1781197840000,-421.23887517,0.00036164,18]
[424843097,1781197840000,-893.2,0.00036164,18]
[424843108,1781197840000,-853.13,0.00036164,18]
[424843104,1781197840000,-500.0,0.00036164,18]
[424843094,1781197840000,-500.0,0.00036164,18]
[424843077,1781197840000,-650.95,0.00036164,18]
[424843069,1781197840000,-500.0,0.00036164,18]
[424843068,1781197840000,-500.0,0.00036164,18]
[424843078,1781197840000,-1522.37,0.00036164,18]
[424843067,1781197840000,-500.0,0.00036164,18]
[424843073,1781197840000,-802.55,0.00036164,18]
[424843070,1781197840000,-880.26,0.00036164,18]
[424843072,1781197840000,-500.0,0.00036164,18]
[424843071,1781197840000,-500.0,0.00036164,18]
[424843075,1781197840000,-500.0,0.00036164,18]
[424843079,1781197840000,-500.0,0.00036164,18]
[424843080,1781197840000,-500.0,0.00036164,18]
[424843081,1781197840000,-500.0,0.00036164,18]
[424843074,1781197840000,-500.0,0.00036164,18]
[424843083,1781197840000,-500.0,0.00036164,18]
[424843086,1781197840000,-500.0,0.00036164,18]
[424843105,1781197840000,-1600.57,0.00036164,18]
[424843098,1781197840000,-829.28,0.00036164,18]
[424843103,1781197840000,-500.0,0.00036164,18]
[424843093,1781197840000,-500.0,0.00036164,18]
[424843089,1781197840000,-500.0,0.00036164,18]
[424843091,1781197840000,-605.75,0.00036164,18]
[424843096,1781197840000,-500.0,0.00036164,18]
[424843088,1781197840000,-500.0,0.00036164,18]
[424843085,1781197840000,-500.0,0.00036164,18]
[424843082,1781197840000,-500.0,0.00036164,18]
[424843084,1781197840000,-686.21,0.00036164,18]
[424843087,1781197840000,-500.0,0.00036164,18]
[424843090,1781197840000,-500.0,0.00036164,18]
[424843246,1781197841000,-500.0,0.00036438,18]
[424843234,1781197841000,-500.0,0.00036438,18]
[424843213,1781197841000,-802.55,0.00036438,18]
[424843232,1781197841000,-686.21,0.00036438,18]
[424843230,1781197841000,-500.0,0.00036438,18]
[424843228,1781197841000,-602.06739267,0.00036438,18]
[424843220,1781197841000,-650.95,0.00036438,18]
[424843224,1781197841000,-500.0,0.00036438,18]
[424843217,1781197841000,-500.0,0.00036438,18]
[424843215,1781197841000,-500.0,0.00036438,18]
[424843222,1781197841000,-1522.37,0.00036438,18]
[424843211,1781197841000,-298.07878371,0.00036438,18]
[424843226,1781197841000,-500.0,0.00036438,18]
[424843244,1781197841000,-500.0,0.00036438,18]
[424843267,1781197841000,-500.0,0.00036438,18]
[424843236,1781197841000,-500.0,0.00036438,18]
[424843242,1781197841000,-500.0,0.00036438,18]
[424843248,1781197841000,-605.75,0.00036438,18]
[424843238,1781197841000,-500.0,0.00036438,18]
[424843250,1781197841000,-500.0,0.00036438,18]
[424843254,1781197841000,-1009.93,0.00036438,18]
[424843258,1781197841000,-893.2,0.00036438,18]
[424843256,1781197841000,-500.0,0.00036438,18]
[424843261,1781197841000,-829.28,0.00036438,18]
[424843271,1781197841000,-1600.57,0.00036438,18]
[424843263,1781197841000,-500.0,0.00036438,18]
[424843252,1781197841000,-500.0,0.00036438,18]
[424843274,1781197841000,-853.13,0.00036438,18]
[424843240,1781197841000,-500.0,0.00036438,18]
[424843203,1781197841000,-500.0,0.00036438,18]
[424843265,1781197841000,-500.0,0.00036438,18]
[424843199,1781197841000,-500.0,0.00036438,18]
[424843148,1781197841000,-500.0,0.00036164,18]
[424843161,1781197841000,-545.68,0.00036164,18]
[424843150,1781197841000,-500.0,0.00036164,18]
[424843154,1781197841000,-500.0,0.00036164,18]
[424843167,1781197841000,-500.0,0.00036164,18]
[424843169,1781197841000,-16418.99,0.00036164,18]
[424843163,1781197841000,-564.02,0.00036164,18]
[424843165,1781197841000,-1264.17,0.00036164,18]
[424843158,1781197841000,-500.0,0.00036164,18]
[424843173,1781197841000,-500.0,0.00036164,18]
[424843156,1781197841000,-500.0,0.00036164,18]
[424843171,1781197841000,-927.85,0.00036164,18]
[424843152,1781197841000,-618.42,0.00036164,18]
[424843159,1781197841000,-500.0,0.00036164,18]
[424843186,1781197841000,-500.0,0.00036438,18]
[424843189,1781197841000,-500.0,0.00036438,18]
[424843191,1781197841000,-500.0,0.00036438,18]
[424843193,1781197841000,-191.46000526,0.00036438,18]
[424843183,1781197841000,-1058.09,0.00036164,18]
[424843175,1781197841000,-1757.98,0.00036164,18]
[424843185,1781197841000,-500.0,0.00036438,18]
[424843181,1781197841000,-865.74,0.00036164,18]
[424843179,1781197841000,-500.0,0.00036164,18]
[424843195,1781197841000,-500.0,0.00036438,18]
[424843177,1781197841000,-1023.87,0.00036164,18]
[424843201,1781197841000,-500.0,0.00036438,18]
[424843209,1781197841000,-500.0,0.00036438,18]
[424843219,1781197841000,-597.56,0.00036438,18]
[424843205,1781197841000,-500.0,0.00036438,18]
[424843207,1781197841000,-880.26,0.00036438,18]
[424843273,1781197841000,-500.0,0.00036438,18]
[424843197,1781197841000,-500.0,0.00036438,18]
[424843276,1781197841000,-500.0,0.00036438,18]
[424843348,1781197841000,-1023.87,0.00036438,18]
[424843344,1781197841000,-500.0,0.00036438,18]
[424843354,1781197841000,-500.0,0.00036712,18]
[424843350,1781197841000,-500.0,0.00036438,18]
[424843352,1781197841000,-865.74,0.00036438,18]
[424843358,1781197841000,-500.0,0.00036712,18]
[424843360,1781197841000,-500.0,0.00036712,18]
[424843364,1781197841000,-500.0,0.00036712,18]
[424843362,1781197841000,-500.0,0.00036712,18]
[424843367,1781197841000,-500.0,0.00036712,18]
[424843371,1781197841000,-500.0,0.00036712,18]
[424843356,1781197841000,-500.0,0.00036712,18]
[424843378,1781197841000,-802.55,0.00036712,18]
[424843376,1781197841000,-500.0,0.00036712,18]
[424843369,1781197841000,-500.0,0.00036712,18]
[424843375,1781197841000,-880.26,0.00036712,18]
[424843373,1781197841000,-500.0,0.00036712,18]
[424843380,1781197841000,-500.0,0.00036712,18]
[424843384,1781197841000,-597.56,0.00036712,18]
[424843390,1781197841000,-500.0,0.00036712,18]
[424843388,1781197841000,-1522.37,0.00036712,18]
[424843386,1781197841000,-650.95,0.00036712,18]
[424843401,1781197841000,-502.55063352,0.00036712,18]
[424843397,1781197841000,-500.0,0.00036712,18]
[424843394,1781197841000,-500.0,0.00036712,18]
[424843382,1781197841000,-500.0,0.00036712,18]
[424843392,1781197841000,-475.29654067,0.00036712,18]
[424843399,1781197841000,-500.0,0.00036712,18]
[424843269,1781197841000,-500.0,0.00036438,18]
[424843335,1781197841000,-1264.17,0.00036438,18]
[424843339,1781197841000,-16418.99,0.00036438,18]
[424843395,1781197841000,-686.21,0.00036712,18]
[424843332,1781197841000,-545.68,0.00036438,18]
[424843284,1781197841000,-500.0,0.00036438,18]
[424843282,1781197841000,-500.0,0.00036438,6]
[424843286,1781197841000,-1379.74,0.00036438,18]
[424843288,1781197841000,-1277.21,0.00036438,2]
[424843290,1781197841000,-500.0,0.00036438,18]
[424843280,1781197841000,-500.0,0.00036438,18]
[424843278,1781197841000,-631.04,0.00036438,18]
[424843292,1781197841000,-500.0,0.00036438,18]
[424843346,1781197841000,-1757.98,0.00036438,18]
[424843296,1781197841000,-1789.85,0.00036438,18]
[424843299,1781197841000,-2320.67,0.00036438,18]
[424843301,1781197841000,-500.0,0.00036438,18]
[424843305,1781197841000,-500.0,0.00036438,18]
[424843303,1781197841000,-993.31,0.00036438,18]
[424843294,1781197841000,-500.0,0.00036438,18]
[424843311,1781197841000,-1220.57,0.00036438,18]
[424843333,1781197841000,-564.02,0.00036438,18]
[424843315,1781197841000,-822.38,0.00036438,18]
[424843337,1781197841000,-500.0,0.00036438,18]
[424843341,1781197841000,-927.85,0.00036438,18]
[424843330,1781197841000,-500.0,0.00036438,18]
[424843326,1781197841000,-500.0,0.00036438,18]
[424843328,1781197841000,-500.0,0.00036438,18]
[424843324,1781197841000,-500.0,0.00036438,18]
[424843318,1781197841000,-500.0,0.00036438,18]
[424843313,1781197841000,-713.18,0.00036438,11]
[424843307,1781197841000,-500.0,0.00036438,18]
[424843309,1781197841000,-1269.75,0.00036438,18]
[424843322,1781197841000,-618.42,0.00036438,18]
[424843320,1781197841000,-500.0,0.00036438,18]
[424843467,1781197842000,-713.18,0.00036712,11]
[424843482,1781197842000,-500.0,0.00036712,18]
[424843477,1781197842000,-500.0,0.00036712,18]
[424843479,1781197842000,-500.0,0.00036712,18]
[424843471,1781197842000,-461.79868401,0.00036712,18]
[424843460,1781197842000,-500.0,0.00036712,18]
[424843475,1781197842000,-618.42,0.00036712,18]
[424843473,1781197842000,-500.0,0.00036712,18]
[424843463,1781197842000,-1269.75,0.00036712,18]
[424843465,1781197842000,-1220.57,0.00036712,18]
[424843461,1781197842000,-500.0,0.00036712,18]
[424843469,1781197842000,-822.38,0.00036712,18]
[424843480,1781197842000,-500.0,0.00036712,18]
[424843505,1781197842000,-500.0,0.00036986,18]
[424843494,1781197842000,-927.85,0.00036712,18]
[424843499,1781197842000,-1023.87,0.00036712,18]
[424843498,1781197842000,-1757.98,0.00036712,18]
[424843501,1781197842000,-500.0,0.00036712,18]
[424843492,1781197842000,-16418.99,0.00036712,18]
[424843491,1781197842000,-627.211575,0.00036712,18]
[424843496,1781197842000,-500.0,0.00036712,18]
[424843502,1781197842000,-865.74,0.00036712,18]
[424843487,1781197842000,-564.02,0.00036712,18]
[424843489,1781197842000,-1264.17,0.00036712,18]
[424843503,1781197842000,-500.0,0.00036986,18]
[424843506,1781197842000,-500.0,0.00036986,18]
[424843458,1781197842000,-993.31,0.00036712,18]
[424843484,1781197842000,-545.68,0.00036712,18]
[424843452,1781197842000,-1789.85,0.00036712,18]
[424843419,1781197842000,-500.0,0.00036712,18]
[424843450,1781197842000,-500.0,0.00036712,18]
[424843507,1781197842000,-500.0,0.00036986,18]
[424843403,1781197842000,-500.0,0.00036712,18]
[424843405,1781197842000,-500.0,0.00036712,18]
[424843407,1781197842000,-633.17248166,0.00036712,18]
[424843423,1781197842000,-829.28,0.00036712,18]
[424843421,1781197842000,-893.2,0.00036712,18]
[424843425,1781197842000,-500.0,0.00036712,18]
[424843427,1781197842000,-500.0,0.00036712,18]
[424843429,1781197842000,-500.0,0.00036712,18]
[424843431,1781197842000,-500.0,0.00036712,18]
[424843432,1781197842000,-1600.57,0.00036712,18]
[424843411,1781197842000,-605.75,0.00036712,18]
[424843415,1781197842000,-500.0,0.00036712,18]
[424843456,1781197842000,-500.0,0.00036712,18]
[424843409,1781197842000,-500.0,0.00036712,18]
[424843417,1781197842000,-1009.93,0.00036712,18]
[424843413,1781197842000,-500.0,0.00036712,18]
[424843434,1781197842000,-853.13,0.00036712,18]
[424843438,1781197842000,-500.0,0.00036712,6]
[424843437,1781197842000,-500.0,0.00036712,18]
[424843454,1781197842000,-2320.67,0.00036712,18]
[424843446,1781197842000,-500.0,0.00036712,18]
[424843435,1781197842000,-500.0,0.00036712,18]
[424843436,1781197842000,-631.04,0.00036712,18]
[424843442,1781197842000,-1379.74,0.00036712,18]
[424843440,1781197842000,-500.0,0.00036712,18]
[424843444,1781197842000,-1277.21,0.00036712,2]
[424843448,1781197842000,-500.0,0.00036712,18]
[424843433,1781197842000,-500.0,0.00036712,18]
[424843511,1781197842000,-500.0,0.00036986,18]
[424843504,1781197842000,-500.0,0.00036986,18]
[424843519,1781197842000,-880.26,0.00036986,18]
[424843594,1781197842000,-853.13,0.00036986,18]
[424843596,1781197842000,-500.0,0.00036986,18]
[424843599,1781197842000,-500.0,0.00036986,18]
[424843598,1781197842000,-631.04,0.00036986,18]
[424843603,1781197842000,-500.0,0.00036986,18]
[424843601,1781197842000,-500.0,0.00036986,6]
[424843605,1781197842000,-1379.74,0.00036986,18]
[424843609,1781197842000,-500.0,0.00036986,18]
[424843607,1781197842000,-1277.21,0.00036986,2]
[424843611,1781197842000,-500.0,0.00036986,18]
[424843618,1781197842000,-500.0,0.00036986,18]
[424843612,1781197842000,-473.5422335,0.00036986,18]
[424843617,1781197842000,-2320.67,0.00036986,18]
[424843590,1781197842000,-1600.57,0.00036986,18]
[424843621,1781197842000,-993.31,0.00036986,18]
[424843623,1781197842000,-500.0,0.00036986,18]
[424843625,1781197842000,-500.0,0.00036986,18]
[424843627,1781197842000,-1269.75,0.00036986,18]
[424843628,1781197842000,-1220.57,0.00036986,18]
[424843630,1781197842000,-713.18,0.00036986,11]
[424843632,1781197842000,-822.38,0.00036986,18]
[424843638,1781197842000,-500.0,0.00036986,18]
[424843637,1781197842000,-618.42,0.00036986,18]
[424843640,1781197842000,-500.0,0.00036986,18]
[424843634,1781197842000,-500.0,0.00036986,18]
[424843646,1781197842000,-545.68,0.00036986,18]
[424843513,1781197842000,-500.0,0.00036986,18]
[424843644,1781197842000,-500.0,0.00036986,18]
[424843614,1781197842000,-1789.85,0.00036986,18]
[424843592,1781197842000,-500.0,0.00036986,18]
[424843642,1781197842000,-500.0,0.00036986,18]
[424843586,1781197842000,-500.0,0.00036986,18]
[424843509,1781197842000,-500.0,0.00036986,18]
[424843515,1781197842000,-500.0,0.00036986,18]
[424843521,1781197842000,-500.0,0.00036986,18]
[424843517,1781197842000,-500.0,0.00036986,18]
[424843523,1781197842000,-802.55,0.00036986,18]
[424843534,1781197842000,-500.0,0.00036986,18]
[424843535,1781197842000,-506.23799291,0.00036986,18]
[424843588,1781197842000,-500.0,0.00036986,18]
[424843537,1781197842000,-686.21,0.00036986,18]
[424843526,1781197842000,-500.0,0.00036986,18]
[424843541,1781197842000,-500.0,0.00036986,18]
[424843532,1781197842000,-1522.37,0.00036986,18]
[424843528,1781197842000,-597.56,0.00036986,18]
[424843539,1781197842000,-500.0,0.00036986,18]
[424843530,1781197842000,-650.95,0.00036986,18]
[424843525,1781197842000,-209.73623138,0.00036986,18]
[424843579,1781197842000,-500.0,0.00036986,18]
[424843574,1781197842000,-829.28,0.00036986,18]
[424843570,1781197842000,-893.2,0.00036986,18]
[424843555,1781197842000,-605.75,0.00036986,18]
[424843564,1781197842000,-1009.93,0.00036986,18]
[424843582,1781197842000,-500.0,0.00036986,18]
[424843561,1781197842000,-500.0,0.00036986,18]
[424843558,1781197842000,-500.0,0.00036986,18]
[424843553,1781197842000,-500.0,0.00036986,18]
[424843545,1781197842000,-500.0,0.00036986,18]
[424843543,1781197842000,-500.0,0.00036986,18]
[424843566,1781197842000,-500.0,0.00036986,18]
[424843729,1781197843000,-1600.57,0.0003726,18]
[424843724,1781197843000,-500.0,0.0003726,18]
[424843728,1781197843000,-500.0,0.0003726,18]
[424843715,1781197843000,-1009.93,0.0003726,18]
[424843708,1781197843000,-500.0,0.0003726,18]
[424843722,1781197843000,-500.0,0.0003726,18]
[424843719,1781197843000,-893.2,0.0003726,18]
[424843717,1781197843000,-500.0,0.0003726,18]
[424843711,1781197843000,-500.0,0.0003726,18]
[424843710,1781197843000,-605.75,0.0003726,18]
[424843713,1781197843000,-500.0,0.0003726,18]
[424843721,1781197843000,-829.28,0.0003726,18]
[424843757,1781197843000,-993.31,0.0003726,18]
[424843731,1781197843000,-500.0,0.0003726,18]
[424843733,1781197843000,-853.13,0.0003726,18]
[424843737,1781197843000,-631.04,0.0003726,18]
[424843738,1781197843000,-500.0,0.0003726,18]
[424843735,1781197843000,-500.0,0.0003726,18]
[424843740,1781197843000,-500.0,0.0003726,6]
[424843744,1781197843000,-1379.74,0.0003726,18]
[424843753,1781197843000,-2320.67,0.0003726,18]
[424843742,1781197843000,-500.0,0.0003726,18]
[424843751,1781197843000,-1789.85,0.0003726,18]
[424843755,1781197843000,-500.0,0.0003726,18]
[424843749,1781197843000,-500.0,0.0003726,18]
[424843699,1781197843000,-686.21,0.0003726,18]
[424843726,1781197843000,-500.0,0.0003726,18]
[424843695,1781197843000,-1522.37,0.0003726,18]
[424843663,1781197843000,-500.0,0.00036986,18]
[424843706,1781197843000,-500.0,0.0003726,18]
[424843746,1781197843000,-1277.21,0.0003726,2]
[424843648,1781197843000,-564.02,0.00036986,18]
[424843651,1781197843000,-1264.17,0.00036986,18]
[424843652,1781197843000,-16418.99,0.00036986,18]
[424843654,1781197843000,-927.85,0.00036986,18]
[424843657,1781197843000,-500.0,0.00036986,18]
[424843674,1781197843000,-500.0,0.0003726,18]
[424843672,1781197843000,-500.0,0.0003726,18]
[424843669,1781197843000,-500.0,0.0003726,18]
[424843671,1781197843000,-500.0,0.0003726,18]
[424843676,1781197843000,-500.0,0.0003726,18]
[424843661,1781197843000,-1023.87,0.00036986,18]
[424843697,1781197843000,-500.0,0.0003726,18]
[424843658,1781197843000,-1757.98,0.00036986,18]
[424843665,1781197843000,-500.0,0.0003726,18]
[424843680,1781197843000,-500.0,0.0003726,18]
[424843681,1781197843000,-500.0,0.0003726,18]
[424843683,1781197843000,-880.26,0.0003726,18]
[424843687,1781197843000,-802.55,0.0003726,18]
[424843691,1781197843000,-597.56,0.0003726,18]
[424843689,1781197843000,-500.0,0.0003726,18]
[424843685,1781197843000,-418.19310389,0.0003726,18]
[424843701,1781197843000,-500.0,0.0003726,18]
[424843705,1781197843000,-500.0,0.0003726,18]
[424843703,1781197843000,-500.0,0.0003726,18]
[424843693,1781197843000,-650.95,0.0003726,18]
[424843678,1781197843000,-500.0,0.0003726,18]
[424843747,1781197843000,-500.0,0.0003726,18]
[424843667,1781197843000,-500.0,0.0003726,18]
[424843761,1781197843000,-500.0,0.0003726,18]
[424843817,1781197843000,-880.26,0.00037534,18]
[424843815,1781197843000,-500.0,0.00037534,18]
[424843833,1781197843000,-500.0,0.00037534,18]
[424843823,1781197843000,-597.56,0.00037534,18]
[424843827,1781197843000,-1522.37,0.00037534,18]
[424843831,1781197843000,-686.21,0.00037534,18]
[424843829,1781197843000,-500.0,0.00037534,18]
[424843836,1781197843000,-500.0,0.00037534,18]
[424843838,1781197843000,-500.0,0.00037534,18]
[424843842,1781197843000,-605.75,0.00037534,18]
[424843840,1781197843000,-500.0,0.00037534,18]
[424843847,1781197843000,-1009.93,0.00037534,18]
[424843845,1781197843000,-500.0,0.00037534,18]
[424843844,1781197843000,-500.0,0.00037534,18]
[424843850,1781197843000,-500.0,0.00037534,18]
[424843854,1781197843000,-829.28,0.00037534,18]
[424843856,1781197843000,-500.0,0.00037534,18]
[424843852,1781197843000,-893.2,0.00037534,18]
[424843883,1781197843000,-63.1906076,0.00037534,18]
[424843859,1781197843000,-500.0,0.00037534,18]
[424843861,1781197843000,-500.0,0.00037534,18]
[424843858,1781197843000,-500.0,0.00037534,18]
[424843867,1781197843000,-853.13,0.00037534,18]
[424843866,1781197843000,-500.0,0.00037534,18]
[424843863,1781197843000,-1600.57,0.00037534,18]
[424843869,1781197843000,-436.8093924,0.00037534,18]
[424843764,1781197843000,-1220.57,0.0003726,18]
[424843809,1781197843000,-500.0,0.00037534,18]
[424843819,1781197843000,-802.55,0.00037534,18]
[424843834,1781197843000,-500.0,0.00037534,18]
[424843825,1781197843000,-650.95,0.00037534,18]
[424843762,1781197843000,-1269.75,0.0003726,18]
[424843766,1781197843000,-713.18,0.0003726,11]
[424843778,1781197843000,-500.0,0.0003726,18]
[424843769,1781197843000,-822.38,0.0003726,18]
[424843821,1781197843000,-500.0,0.00037534,18]
[424843776,1781197843000,-500.0,0.0003726,18]
[424843774,1781197843000,-500.0,0.0003726,18]
[424843772,1781197843000,-500.0,0.0003726,18]
[424843770,1781197843000,-618.42,0.0003726,18]
[424843780,1781197843000,-500.0,0.0003726,18]
[424843782,1781197843000,-545.68,0.0003726,18]
[424843791,1781197843000,-500.0,0.0003726,18]